Cogmind - Beta 16 @@@ ROGUE MODE // 2026.01.19 @ 16:42:16 Player: noklam Result: Destroyed by 01-MTF with 01-MTF's Shockpuncher Performance ------------- Evolutions (1) 500 Regions Visited (3) 600 Robots Destroyed (28) 140 Value Destroyed (669) 669 Prototype IDs (1) 20 Alien Tech Used (0) 0 Bonus (-144) -144 TOTAL SCORE: 1785 Bonus ------- Friendly Fire -144 Cogmind --------- Core Integrity 0/400 Matter 300/300 Energy 82/100 System Corruption 4% Temperature Cool (0) Movement Core (100) Ox1 Location -9/Storage Parts ------- > --- POWER (1) -------- (None) > --- PROPULSION (3) --- (None) > --- UTILITY (3) ------ Visual Processing Unit ECM Suite > --- WEAPON (2) ------- Mace Mining Claw > --- INVENTORY (5) ---- Light Ion Engine Improved Ion Engine Improved Ion Engine Field Recycling Unit (6) Mini Grenade Launcher Peak State ------------ > --- POWER ------------ Heavy Ion Engine > --- PROPULSION ------- Wheel Wheel Armored Wheel > --- UTILITY ---------- Small Storage Unit Weight Redist. System Light Armor Plating > --- WEAPON ----------- Beam Rifle Hammer > --- INVENTORY -------- Light Ion Engine Improved Ion Engine Improved Ion Engine Wheel Wheel Wheel ECM Suite Field Recycling Unit [Rating: 15] Favorites ----------- Power Light Ion Engine Engine Light Ion Engine Propulsion Wheel Leg Aluminum Leg Wheel Wheel Utility Small Storage Unit Device Weight Redist. System Storage Small Storage Unit Processor Visual Processing Unit Protection Light Armor Plating Weapon Hammer Energy Gun Small Laser Ballistic Gun Assault Rifle Launcher Mini Grenade Launcher Impact Weapon Hammer Slashing Weapon Mining Claw Build | -11 -10 -9 -9 ------- Run | Yrd Mat Mat Sto Slots Evolved 2 | . . 2 . Power . | . . . . Propulsion 1 | . . 1 . Utility 1 | . . 1 . Weapon . | . . . . Parts Attached 36 | 9 4 15 8 Power 5 | 1 1 3 . Engine 5 | 1 1 3 . Core . | . . . . Reactor . | . . . . Propulsion 11 | 4 . 6 1 Treads . | . . . . Leg 2 | 2 . . . Wheel 9 | 2 . 6 1 Hover . | . . . . Flight . | . . . . Utility 10 | 1 2 3 4 Device 6 | . 1 2 3 Storage 1 | 1 . . . Processor 1 | . . . 1 Hackware . | . . . . Protection 2 | . 1 1 . Artifact . | . . . . Weapon 10 | 3 1 3 3 Energy Gun 4 | 2 . 2 . Energy Cannon . | . . . . Ballistic Gun 1 | 1 . . . Ballistic Cannon . | . . . . Launcher 2 | . . . 2 Special Weapon . | . . . . Impact Weapon 2 | . 1 1 . Slashing Weapon 1 | . . . 1 Piercing Weapon . | . . . . Special Melee Weapon . | . . . . Unidentified Prototypes 1 | . . 1 . Parts Lost 17 | . 5 6 6 Power 3 | . 1 1 1 Propulsion 7 | . 1 3 3 Utility 4 | . 1 1 2 Weapon 3 | . 2 1 . Highest Loss Streak 6 | . 5 6 3 To Critical Strikes . | . . . . Average Backups 5 | 2 4 6 7 Power 2 | . 1 2 3 Propulsion 1 | 1 1 2 . Utility 1 | . . 1 1 Weapon . | . . . 2 Tool/Special . | . . . . Unused Backups 4 | . . . 4 Power 2 | . . . 2 Propulsion . | . . . . Utility . | . . . . Weapon 2 | . . . 2 Tool/Special . | . . . . Average Slot Usage (%) 87 | . 92 86 84 Engine 11 | . 14 10 10 Leg 1 | . 5 . . Wheel 23 | . 21 28 20 Device 11 | . 1 12 18 Storage 11 | . 14 11 10 Protection 4 | . 9 4 . Energy Gun 9 | . 24 6 . Impact Weapon 10 | . . 11 18 Peak Build Rating 15 | 6 7 15 15 Average Rating 9 | 5 6 12 13 On Entrance 6 | . 6 6 14 Avg Prop Armor Cover (%) 10 | 10 . . . Naked Turns . | . . . . Heaviest Build 26 | 11 14 21 26 Greatest Support 38 | 26 26 38 38 Greatest Overweight (x) 2 | 1 1 1 2 Average Overweight (x) . | . . . . Largest Inventory Capacity 8 | 8 8 8 8 Average Capacity 7 | 7 8 8 7 Most Carried 8 | 3 6 8 8 Average Carried 5 | 2 4 6 7 Final Capacity 8 | 8 8 8 5 Final Carried 7 | 3 3 7 5 Class Distribution -------------------- 100% | Mutant Dominant Class ---------------- Mutant | -10/Materials Mutant | -9/Materials Mutant | -9/Storage Resources | -11 -10 -9 -9 ----------- Run | Yrd Mat Mat Sto Matter Collected 620 | 310 25 150 135 Remotely . | . . . . Salvage Created 1083 | 78 251 412 342 Parts 37 | . 12 16 9 Haulers Intercepted 1 | . . 1 . Recyclers Shooed . | . . . . Parts Field Recycled 3 | . . . 3 Retrieved Matter 20 | . . . 20 Parts Self-Destructed . | . . . . Prevented . | . . . . Parts Restored . | . . . . Kills | -11 -10 -9 -9 ------- Run | Yrd Mat Mat Sto Combat Hostiles Destroyed 17 | . 5 9 3 Melee 5 | . . 3 2 Guns 8 | . 5 3 . Classes Destroyed 9 | 1 3 3 2 Worker 3 | . . . 3 Builder 1 | . . . 1 Hauler 1 | . . 1 . Recycler 3 | 1 1 . 1 Watcher 3 | . 1 1 1 Swarmer 5 | . 3 2 . Grunt 5 | . 2 3 . Duelist 1 | . . 1 . Sentry 6 | . . 3 3 Best Kill Streak 4 | 1 3 3 4 Combat Bots Only 3 | . 3 2 1 Max Kills in Single Turn 1 | 1 1 1 1 Gunslinging . | . . . . Exploded . | . . . . Melee 1 | . . 1 1 Uniques/NPCs Destroyed . | . . . . Combat | -11 -10 -9 -9 -------- Run | Yrd Mat Mat Sto Hostile Shots Fired 196 | . 64 87 45 Missed 60 | . 15 30 15 Hits 136 | . 49 57 30 Melee 5 | . . 4 1 Projectile 131 | . 49 53 29 Critical Strikes 5 | . . 2 3 Damage Taken 1967 | . 524 855 588 Core 505 | . 103 182 220 Absorbed by Shields . | . . . . Core Remaining (%) 79 | 100 58 . . Volleys Fired 44 | 4 27 11 2 Largest 2 | 2 2 1 2 Hottest 90 | 90 90 56 60 Shots Fired 75 | 8 52 11 4 Gun 71 | 8 52 11 . Cannon . | . . . . Launcher 4 | . . . 4 Special . | . . . . Kinetic . | . . . . Thermal 71 | 8 52 11 . Explosive 4 | . . . 4 Electromagnetic . | . . . . Robot Hit Streak 4 | 3 4 3 . Robot Miss Streak 5 | 1 5 2 . Penetration Max . | . . . . Secondary Targets . | . . . . Shots Hit Robots 76 | 5 26 31 14 Core Hits 28 | 2 12 7 7 Critical Kills 1 | . . . 1 Critical Parts Destroyed 8 | . . 7 1 Critical Strikes 13 | 1 2 8 2 Burn 4 | 1 2 1 . Smash 9 | . . 7 2 Melee Attacks 54 | . . 31 23 Impact 48 | . . 31 17 Slashing 6 | . . . 6 Piercing . | . . . . Sneak Attacks 8 | . . 1 7 Combat Hostiles . | . . . . Follow-up Attacks 4 | . . . 4 Damage Inflicted 1817 | 74 314 682 747 Guns 475 | 74 314 87 . Cannons . | . . . . Explosions 148 | . . . 148 Melee 1187 | . . 595 592 Ramming 7 | . . . 7 Kinetic . | . . . . Thermal 475 | 74 314 87 . Explosive 148 | . . . 148 Electromagnetic . | . . . . Impact 1088 | . . 595 493 Slashing 99 | . . . 99 Piercing . | . . . . Highest Corruption 4 | . . . 4 Average Corruption 2 | . . . 2 Corruption Purged . | . . . . Corruption Blocked . | . . . . Effects 4 | . . . 4 Message Errors 1 | . . . 1 Matter Fused 2 | . . . 2 Heat Flow Errors 1 | . . . 1 Overload Shots . | . . . . Overflow Damage 440 | . . 234 206 Projectiles . | . . . . Explosions 37 | . . . 37 Melee 403 | . . 234 169 Knockbacks 2 | . . 1 1 Impact 2 | . . 1 1 Kinetic . | . . . . Secondary . | . . . . Self-Inflicted Damage 66 | . . . 66 Shots 2 | . . . 2 Rammed 1 | . . . 1 Targets Rammed 1 | . . . 1 Kicked . | . . . . Crushed . | . . . . Highest Temperature 406 | 120 406 53 127 Average Temperature 123 | 63 157 19 54 Received Heat Transfer 612 | . 213 297 102 Effects 2 | . 2 . . Shutdowns 2 | . 2 . . Siege Activations . | . . . . Martial Activations . | . . . . Shielding Activations . | . . . . Robots Disrupted . | . . . . Combat Hostiles . | . . . . Robots Corrupted 8 | . . 4 4 Combat Hostiles 4 | . . 3 1 Parts Fried 9 | . . 5 4 Impact Corruptions 14 | . . 8 6 Robots Melted . | . . . . Combat Hostiles . | . . . . Parts Melted 5 | 1 3 . 1 Heat Transferred 1547 | 272 979 296 . Parts Sabotaged . | . . . . Parts Stolen . | . . . . Parts Stripped . | . . . . Power Chain Reactions . | . . . . Alert | -11 -10 -9 -9 ------- Run | Yrd Mat Mat Sto Maximum Alert Level . | . . . . Low Security (%) 100 | 100 100 100 100 Level 1 . | . . . . Level 2 . | . . . . Level 3 . | . . . . Level 4 . | . . . . Level 5 . | . . . . High Security . | . . . . Max Security . | . . . . Peak Influence 184 | 5 70 184 81 Initial 74 | . . . 74 Average 36 | . 18 66 44 Influence Increases 784 | 5 132 436 211 Destroy 0b10 Robot/C 340 | . 100 180 60 Destroy 0b10 Robot/NC 55 | 5 10 10 30 Destroy Leader 108 | . 22 54 32 Successful Hack 12 | . . 12 . Disable Machine 45 | . . . 45 Destroy Structure 29 | . . . 29 Partial Spotted 15 | . . 15 . Lose Combat Pursuer 180 | . . 165 15 Influence Decreases 757 | 5 132 260 360 Entered New Map 102 | . . . 102 Time Decay 511 | 5 102 200 204 Lost Part 144 | . 30 60 54 Squads Dispatched 4 | . 2 1 1 Investigation . | . . . . Extermination . | . . . . Reinforcement 4 | . 2 1 1 Assault . | . . . . Garrison . | . . . . Intercept . | . . . . Searches Triggered . | . . . . Construction Impeded . | . . . . Haulers Reinforced . | . . . . Active Scanning Responses . | . . . . Cargo Convoy Interrupts . | . . . . Stealth | -11 -10 -9 -9 --------- Run | Yrd Mat Mat Sto Distress Signals 3 | . 3 . . Communications Jammed . | . . . . Distress Signals . | . . . . Times Spotted 54 | . 12 25 17 Peak Tracking Total 8 | . 5 8 4 Tactical Retreats 8 | . . 7 1 Traps | -11 -10 -9 -9 ------- Run | Yrd Mat Mat Sto Traps Triggered . | . . . . Indirectly . | . . . . Trap Hack Attempts . | . . . . Triggered . | . . . . Disarmed . | . . . . Reprogrammed . | . . . . Reused . | . . . . Traps Extracted . | . . . . Installed . | . . . . Triggered . | . . . . Machines | -11 -10 -9 -9 ---------- Run | Yrd Mat Mat Sto Machines Disabled 3 | . . . 3 Max in Single Turn 2 | . . . 2 Garrison Access 1 | . . . 1 Machines Repaired . | . . . . Machines Dismantled . | . . . . Machines Sabotaged . | . . . . Overloaded Fab Kills . | . . . . Hacking | -11 -10 -9 -9 --------- Run | Yrd Mat Mat Sto Machines Accessed 2 | . . 1 1 Terminals . | . . . . Fabricators . | . . . . Repair Stations . | . . . . Recycling Units . | . . . . Scanalyzers 1 | . . 1 . Garrison Access 1 | . . . 1 Total Hacks 3 | . . 2 1 Successful 2 | . . 1 1 Failed . | . . . . Catastrophic . | . . . . Database Lockouts 1 | . . 1 . Manual . | . . . . Terminals . | . . . . Fabricators . | . . . . Repair Stations . | . . . . Recycling Units . | . . . . Scanalyzers 2 | . . 2 . Garrison Access 1 | . . . 1 Terminal Hacks . | . . . . Fabricator Hacks . | . . . . Repair Station Hacks . | . . . . Recycling Unit Hacks . | . . . . Scanalyzer 1 | . . 1 . Retrieve Study 1 | . . 1 . Garrison Access Hacks 1 | . . . 1 Seal Access 1 | . . . 1 Unauthorized Hacks . | . . . . Terminals . | . . . . Fabricators . | . . . . Repair Stations . | . . . . Recycling Units . | . . . . Scanalyzers . | . . . . Garrison Access . | . . . . Data Cores Recovered . | . . . . Used . | . . . . Hacking Detections 1 | . . 1 . Full Trace Events . | . . . . Feedback Events . | . . . . Feedback Blocked . | . . . . Robot Schematics Acquired . | . . . . Robots Built . | . . . . Authchips . | . . . . Time . | . . . . Total Robot Build Rating . | . . . . Part Schematics Acquired . | . . . . Parts Built . | . . . . Authchips . | . . . . Time . | . . . . Total Part Build Rating . | . . . . Part Studies Acquired 1 | . . 1 . Parts Repaired . | . . . . Time . | . . . . Parts Recycled . | . . . . Recycled Matter . | . . . . Retrieved Matter . | . . . . Retrieved Components . | . . . . Parts Scanalyzed . | . . . . Part Schematics Acquired . | . . . . Parts Damaged . | . . . . Bothacking | -11 -10 -9 -9 ------------ Run | Yrd Mat Mat Sto Used RIF Installer . | . . . . Robots Hacked . | . . . . Non-combat . | . . . . Combat . | . . . . Robot Hacks Applied . | . . . . Relay Couplers Released . | . . . . Fabnet Peak Effective % . | . . . . Robots Rewired . | . . . . Allies Hacked . | . . . . Hacks Repelled . | . . . . Allies | -11 -10 -9 -9 -------- Run | Yrd Mat Mat Sto Total Allies . | . . . . Largest Group . | . . . . Highest-Rated Group . | . . . . Highest-Rated Ally . | . . . . Total Orders . | . . . . Ally Attacks . | . . . . Total Damage . | . . . . Kills . | . . . . Allies Corrupted . | . . . . Allies Melted . | . . . . Intel | -11 -10 -9 -9 ------- Run | Yrd Mat Mat Sto Active Infowar (turns) 104 | . . . 104 Optics 43 | . . . 43 ECM 104 | . . . 104 Robot Analysis Total . | . . . . Derelict Logs Recovered . | . . . . Drone Launches . | . . . . Drone Recoveries . | . . . . Exploration | -11 -10 -9 -9 ------------- Run | Yrd Mat Mat Sto Turns Passed 1622 | 318 363 493 448 Spaces Moved 1197 | 139 290 420 348 Core 2 | 2 . . . Treads . | . . . . Legs 85 | 34 43 8 . Wheels 1110 | 103 247 412 348 Hover . | . . . . Flight . | . . . . Fastest Speed 50 | 50 90 80 83 Average Speed 92 | 110 94 83 93 Slowest Speed 190 | 190 120 120 110 Overloaded Moves . | . . . . Propulsion Burnouts . | . . . . Robots Hopped . | . . . . Potential Cave-ins . | . . . . Cave-ins Triggered . | . . . . Exploration Rate (%) 37 | 11 39 46 55 Regions Visited 3 Branch Regions 1 Pre-discovered Areas . | . . . . Known Exits Taken . | . . . . Unknown Exits Taken 3 | 1 1 1 . Scrap Searched . | . . . . Spaces Dug . | . . . . Terrain Destroyed 25 | . . . 25 Melee . | . . . . Projectile . | . . . . AOE 25 | . . . 25 Terrain Rammed . | . . . . Walls Destroyed . | . . . . Machines Disabled . | . . . . Actions | -11 -10 -9 -9 --------- Run | Yrd Mat Mat Sto Total 1537 | 289 325 494 429 Wait 176 | 134 . 1 41 Move 1194 | 138 289 419 348 Hop . | . . . . Pick Up 20 | 2 3 9 6 Fast Attach 15 | 6 2 7 . Attach 8 | . 3 3 2 Detach 2 | . . 2 . Swap 19 | 5 1 5 8 Drop 9 | . . 6 3 Fire 44 | 4 27 11 2 Melee 49 | . . 31 18 Ram 1 | . . . 1 Kick . | . . . . Crush . | . . . . Escape Stasis . | . . . . Rewire . | . . . . Trap . | . . . . Miscellaneous . | . . . . Route ------- -11/Scrapyard -10/Materials -9/Materials (discovered 3 exits: [*Mat] / [*Min] / *Sto) -9/Storage (discovered 1 exit: [*Mat]) History --------- Turn | Location | Event 12 | -11/Scrapyard | Discovered new exit (range 16) 319 | -11/Scrapyard | Entered Materials 320 | -10/Materials | Build established: Mutant 480 | -10/Materials | Discovered new exit (range 5) 668 | -10/Materials | Lost 5 parts (1p1n1u2w) 682 | -10/Materials | Entered another Materials area 682 | -9/Materials | Evolved 2 slots: Propulsion x1, Utility x1 887 | -9/Materials | Central database locked down 924 | -9/Materials | Discovered new exit (range 15) 979 | -9/Materials | Discovered new exit (range 7) 1130 | -9/Materials | Lost 6 parts (1p3n1u1w) 1170 | -9/Materials | Discovered new exit (range 5) 1175 | -9/Materials | Entered Storage 1228 | -9/Storage | Met 01-MTF 1318 | -9/Storage | Core integrity fell below 50% 1518 | -9/Storage | Discovered new exit (range 16) 1608 | -9/Storage | Core integrity fell below 20% 1623 | -9/Storage | Destroyed by 01-MTF with 01-MTF's Shockpuncher Last Messages --------------- 01597_ Chain reaction triggered in Imp. Ion Engine. 01597_ Component Storage disabled. 01598_ Acquired 48 matter. 01599_ Heat Sink melted. 01599_ Y-45 Defender destroyed. 01603_ XO6FLAAP=YL9 01615_ Sml. Storage Unit destroyed. 01615_ U-05 Engineer lays Concrete. 01620_ Mace follow-up attack on 01-MTF. 01620_ U-05 Engineer lays Concrete. Map ----- +----------------------------------------------------+ | | | | | | | | | | | | | | | | | | | | | | | | | | | | | | | | | ???????????????????????????????????????????? | | ???????????????????????????????????????????? | | ???????????????????????????????????????????? | | ???????????????????????????????????????????? | | ???????????????????????????????????????????? | | ????????????????????##?????#####???????????? | | ???????????????????##;###??# ##########??? | | ?????????????????###; !;####^< # #??? | | ???????????????### %[[!p# # #??? | | ???????????????#"" u=u[@]# # #??? | | ?????????????###"T " [% # # #??? | | ????????????? #"" """ u/ + """" " #??? | | ?????????????" ### """ # # "!/!]" #??? | | ?????????????" #?# """ # # "===!" #??? | | ?????????????" #?# """ # + """""" #??? | | ?????#??????"" #?# # # #??? | | ?????? ????"" ############# ##########??? | | ??????? """" #"""#??????# #???????????? | | ???????? "T"#?????## ###?????????? | | ########## ## " "###???#T #T######????? | | # + #???## # #!!!!#????? | | # """ #????# + #????? | | """""" %# " "" #????# # # !!!#????? | | "????" #! # """ ###### ########????? | | "????" +^! + % % + [ #???????????? | | """""" #% # ######!% #???????????? | | % # #????# #???????????? | | [ #????# #???????????? | | ######### ## ############ #???????????? | | ????????# ### !%= =# +???????????? | | ##??????#####?# """="[ [%# #???????????? | | + ????????# """"" ="% #???????????? | | ##????????????# """"" =%[ # #???????????? | | ??????????????# [ # #???????????? | +----------------------------------------------------+ Best States ------------- Heat Dissipation 50 Energy Generation 14 Energy Capacity 280 Matter Stores 300 Matter Capacity 300 Sight Range 18 Terrain Scan Density 10 ECM Strength 1 Additional Mass Support 6 Armor Coverage 150 Evasion (%) 55 Item Schematics ----------------- None Robot Schematics ------------------ None Fabricated ------------ Nothing Repaired ---------- Nothing Studied --------- Hammer | -9/Materials | Hacked Alien Tech Used ----------------- None Achievements -------------- None Challenges ------------ None Game ------ Seed PersonalDirtyTendrils Manual? 0 Play Time 00:17:35 Cumulative 21.1 hours Start 2026.01.19 @ 16:25:03 End 2026.01.19 @ 16:42:16 Sessions 1 Manual Loads 0 Difficulty Rogue Special Mode None Game No. 34 Rogue 34 Adventurer 0 Explorer 0 Win Type - Total 0 Types 0/0/0/0/0/0/0/0/0/0 Lore% 12 Gallery% 24 Achievement% 17 Wizard Run 0 Options --------- Layout 1 ASCII 0 Keyboard 1 Movement Vi Keybinds 0 Fullscreen 1 Font 32/SmallcapsGlow Map View 50x35 Zoom Use 0% Tactical HUD 1 Map Filters NONE Filters NONE Steam 1 RUN: 06eb1ea1-823f-4019-8bf4-864839637dcc